[Event "Late-Titled-Tuesday-Blitz-June-25-2024"]
[Site "Chess.com"]
[Date "2024.06.25"]
[Round "5"]
[White "GothamChess"]
[Black "Grischuk"]
[Result "1/2-1/2"]
[WhiteElo "2764"]
[BlackElo "3120"]
[TimeControl "180+1"]
[EndTime "14:56:05 PDT"]
[Termination "Game drawn - insufficient material"]

1. e4 {[%clk 0:03:00.9]} 1... e5 {[%clk 0:02:59.8]} 2. Nf3 {[%clk 0:02:59.5]}
2... Nc6 {[%clk 0:03:00.5]} 3. c3 {[%clk 0:02:59.5]} 3... Nf6 {[%clk 0:02:57.4]}
4. d4 {[%clk 0:02:59.4]} 4... exd4 {[%clk 0:02:57.4]} 5. e5 {[%clk 0:02:59.8]}
5... Nd5 {[%clk 0:02:57.5]} 6. Qb3 {[%clk 0:03:00.4]} 6... Nb6 {[%clk
0:02:48.5]} 7. cxd4 {[%clk 0:03:00.1]} 7... d6 {[%clk 0:02:30.8]} 8. Bb5 {[%clk
0:02:57.4]} 8... Be6 {[%clk 0:02:24.5]} 9. Qd1 {[%clk 0:02:50.6]} 9... Be7
{[%clk 0:02:15.9]} 10. Nc3 {[%clk 0:02:44.7]} 10... Nd5 {[%clk 0:02:14.7]} 11.
O-O {[%clk 0:02:30.6]} 11... O-O {[%clk 0:02:14.5]} 12. Ne4 {[%clk 0:02:19.6]}
12... Bg4 {[%clk 0:02:07.8]} 13. Bxc6 {[%clk 0:02:07.6]} 13... bxc6 {[%clk
0:02:08.7]} 14. h3 {[%clk 0:02:08]} 14... Bh5 {[%clk 0:02:08.8]} 15. Ng3 {[%clk
0:02:07.1]} 15... Bg6 {[%clk 0:02:09.4]} 16. Qa4 {[%clk 0:01:57.9]} 16... Qd7
{[%clk 0:02:02.9]} 17. Bd2 {[%clk 0:01:45.7]} 17... Rfb8 {[%clk 0:01:54.8]} 18.
b3 {[%clk 0:01:44.7]} 18... a5 {[%clk 0:01:49.4]} 19. Rac1 {[%clk 0:01:29.8]}
19... Rb6 {[%clk 0:01:44.1]} 20. Qc4 {[%clk 0:01:21.3]} 20... h6 {[%clk
0:01:38.7]} 21. Rfe1 {[%clk 0:01:21.2]} 21... Bf8 {[%clk 0:01:17.9]} 22. Kh2
{[%clk 0:01:19.7]} 22... Qc8 {[%clk 0:01:16.2]} 23. Nh4 {[%clk 0:01:14.5]} 23...
Bh7 {[%clk 0:01:16.1]} 24. Qe2 {[%clk 0:01:00.2]} 24... a4 {[%clk 0:01:11.6]}
25. bxa4 {[%clk 0:00:55.2]} 25... Rxa4 {[%clk 0:01:02.8]} 26. exd6 {[%clk
0:00:53.2]} 26... cxd6 {[%clk 0:01:00.4]} 27. Qe8 {[%clk 0:00:53]} 27... Ra8
{[%clk 0:00:48.8]} 28. Qxc8 {[%clk 0:00:45.3]} 28... Rxc8 {[%clk 0:00:49.7]} 29.
a4 {[%clk 0:00:32.9]} 29... Rb2 {[%clk 0:00:48.6]} 30. Nf3 {[%clk 0:00:30.3]}
30... Bd3 {[%clk 0:00:28.3]} 31. Ra1 {[%clk 0:00:25.4]} 31... Ra8 {[%clk
0:00:26.9]} 32. Rec1 {[%clk 0:00:23.7]} 32... Ra6 {[%clk 0:00:26.6]} 33. a5
{[%clk 0:00:22.6]} 33... Bb5 {[%clk 0:00:24]} 34. Kg1 {[%clk 0:00:19.4]} 34...
Be7 {[%clk 0:00:23.6]} 35. Ne4 {[%clk 0:00:18.7]} 35... f6 {[%clk 0:00:17.2]}
36. Ng3 {[%clk 0:00:17.3]} 36... Kf7 {[%clk 0:00:16.4]} 37. Nf5 {[%clk
0:00:16.1]} 37... Bf8 {[%clk 0:00:16.8]} 38. Ng3 {[%clk 0:00:15]} 38... g6
{[%clk 0:00:12.5]} 39. Ne4 {[%clk 0:00:13.5]} 39... g5 {[%clk 0:00:12.5]} 40.
Bc3 {[%clk 0:00:10.3]} 40... Re2 {[%clk 0:00:10.9]} 41. Ng3 {[%clk 0:00:09.5]}
41... Re8 {[%clk 0:00:10.9]} 42. Bd2 {[%clk 0:00:08.9]} 42... Kg6 {[%clk
0:00:10]} 43. Re1 {[%clk 0:00:09.3]} 43... Rea8 {[%clk 0:00:06.6]} 44. Ne4
{[%clk 0:00:07]} 44... Kf7 {[%clk 0:00:04.5]} 45. g4 {[%clk 0:00:06.5]} 45...
R6a7 {[%clk 0:00:03.9]} 46. Ng3 {[%clk 0:00:06.8]} 46... Re8 {[%clk 0:00:03.5]}
47. Rxe8 {[%clk 0:00:05.9]} 47... Kxe8 {[%clk 0:00:04.4]} 48. Nf5 {[%clk
0:00:06.2]} 48... Kf7 {[%clk 0:00:03.7]} 49. h4 {[%clk 0:00:05]} 49... h5 {[%clk
0:00:02.9]} 50. gxh5 {[%clk 0:00:03.8]} 50... g4 {[%clk 0:00:03]} 51. Nh2 {[%clk
0:00:04.4]} 51... Bd3 {[%clk 0:00:03.3]} 52. Ne3 {[%clk 0:00:02.5]} 52... Nxe3
{[%clk 0:00:02.8]} 53. Bxe3 {[%clk 0:00:03.1]} 53... f5 {[%clk 0:00:02.2]} 54.
h6 {[%clk 0:00:03.4]} 54... Kg6 {[%clk 0:00:02.1]} 55. Rd1 {[%clk 0:00:01.4]}
55... Be4 {[%clk 0:00:01.7]} 56. Bd2 {[%clk 0:00:01.3]} 56... Bd5 {[%clk
0:00:01.7]} 57. Nf1 {[%clk 0:00:01.3]} 57... Bxh6 {[%clk 0:00:01.9]} 58. Bxh6
{[%clk 0:00:01.5]} 58... Kxh6 {[%clk 0:00:02.8]} 59. Ra1 {[%clk 0:00:01.8]}
59... f4 {[%clk 0:00:02.8]} 60. Nh2 {[%clk 0:00:01.6]} 60... Kh5 {[%clk
0:00:03.1]} 61. Ra3 {[%clk 0:00:01.9]} 61... Kxh4 {[%clk 0:00:03.4]} 62. Nf1
{[%clk 0:00:02.3]} 62... Kg5 {[%clk 0:00:03.1]} 63. Nd2 {[%clk 0:00:02.4]} 63...
Kf5 {[%clk 0:00:03.7]} 64. Kf1 {[%clk 0:00:02.7]} 64... Ra6 {[%clk 0:00:03.3]}
65. Ke2 {[%clk 0:00:03.2]} 65... c5 {[%clk 0:00:02.7]} 66. dxc5 {[%clk
0:00:03.2]} 66... dxc5 {[%clk 0:00:03.6]} 67. Kd3 {[%clk 0:00:02.8]} 67... Ke5
{[%clk 0:00:03.8]} 68. Nc4+ {[%clk 0:00:02.7]} 68... Ke6 {[%clk 0:00:03.9]} 69.
Nb6 {[%clk 0:00:02.7]} 69... Kd6 {[%clk 0:00:04]} 70. Ra4 {[%clk 0:00:02.8]}
70... c4+ {[%clk 0:00:02.5]} 71. Kd4 {[%clk 0:00:02.7]} 71... Be6 {[%clk
0:00:02.1]} 72. Nxc4+ {[%clk 0:00:02.6]} 72... Bxc4 {[%clk 0:00:02.3]} 73. Kxc4
{[%clk 0:00:03.4]} 73... g3 {[%clk 0:00:02.5]} 74. fxg3 {[%clk 0:00:03.4]} 74...
fxg3 {[%clk 0:00:03.4]} 75. Ra3 {[%clk 0:00:03.4]} 75... g2 {[%clk 0:00:03]} 76.
Rg3 {[%clk 0:00:03.7]} 76... Rxa5 {[%clk 0:00:02.7]} 77. Rg6+ {[%clk 0:00:04.4]}
77... Kc7 {[%clk 0:00:02.7]} 78. Rxg2 {[%clk 0:00:05]} 78... Rf5 {[%clk
0:00:02.6]} 79. Rd2 {[%clk 0:00:04.8]} 79... Rf6 {[%clk 0:00:02.8]} 80. Rd5
{[%clk 0:00:05.3]} 80... Rd6 {[%clk 0:00:03]} 81. Rxd6 {[%clk 0:00:05.6]} 81...
Kxd6 {[%clk 0:00:03.9]} 1/2-1/2

[Event "Late-Titled-Tuesday-Blitz-June-25-2024"]
[Site "Chess.com"]
[Date "2024.06.25"]
[Round "5"]
[White "Cxrjs"]
[Black "OppieZippy"]
[Result "1-0"]
[WhiteElo "2523"]
[BlackElo "2347"]
[TimeControl "180+1"]
[EndTime "14:56:05 PDT"]
[Termination "Cxrjs won by resignation"]

1. e4 {[%clk 0:02:55.1]} 1... e5 {[%clk 0:01:54.2]} 2. Nf3 {[%clk 0:02:53.3]}
2... Nc6 {[%clk 0:01:53.9]} 3. Bb5 {[%clk 0:02:53.9]} 3... a6 {[%clk 0:01:53.4]}
4. Ba4 {[%clk 0:02:53.9]} 4... d6 {[%clk 0:01:51.4]} 5. c3 {[%clk 0:02:54.1]}
5... Bd7 {[%clk 0:01:51.4]} 6. Qe2 {[%clk 0:02:54.2]} 6... g6 {[%clk 0:01:51.4]}
7. d4 {[%clk 0:02:50.1]} 7... Bg7 {[%clk 0:01:51.4]} 8. d5 {[%clk 0:02:49.2]}
8... Nb8 {[%clk 0:01:51.2]} 9. Bc2 {[%clk 0:02:47.3]} 9... Ne7 {[%clk
0:01:50.3]} 10. c4 {[%clk 0:02:44.6]} 10... O-O {[%clk 0:01:50.3]} 11. a3 {[%clk
0:02:39.4]} 11... c6 {[%clk 0:01:44.8]} 12. Nc3 {[%clk 0:02:36.4]} 12... cxd5
{[%clk 0:01:44.6]} 13. Nxd5 {[%clk 0:02:30.1]} 13... Nxd5 {[%clk 0:01:33]} 14.
cxd5 {[%clk 0:02:30.2]} 14... a5 {[%clk 0:01:33.5]} 15. O-O {[%clk 0:02:23.3]}
15... Na6 {[%clk 0:01:33.5]} 16. Nd2 {[%clk 0:02:14.6]} 16... Nc5 {[%clk
0:01:33]} 17. Nc4 {[%clk 0:02:15]} 17... Qe7 {[%clk 0:01:29.7]} 18. Be3 {[%clk
0:02:13.4]} 18... Bb5 {[%clk 0:01:23.6]} 19. b4 {[%clk 0:02:09.6]} 19... axb4
{[%clk 0:01:20.5]} 20. axb4 {[%clk 0:02:10]} 20... Rxa1 {[%clk 0:01:20.3]} 21.
Rxa1 {[%clk 0:02:09.8]} 21... Na6 {[%clk 0:01:20.9]} 22. Bb3 {[%clk 0:01:41.2]}
22... Rc8 {[%clk 0:01:17.3]} 23. Bd2 {[%clk 0:01:34.3]} 23... Qc7 {[%clk
0:01:10.7]} 24. Rc1 {[%clk 0:01:32.5]} 24... Qe7 {[%clk 0:00:55.5]} 25. Qf3
{[%clk 0:01:27.3]} 25... h5 {[%clk 0:00:45.4]} 26. h3 {[%clk 0:01:25.4]} 26...
Bf6 {[%clk 0:00:38.4]} 27. Qe3 {[%clk 0:01:24.5]} 27... Bg7 {[%clk 0:00:36.2]}
28. Qb6 {[%clk 0:01:23]} 28... Bxc4 {[%clk 0:00:32.8]} 29. Rxc4 {[%clk
0:01:22.2]} 29... Rxc4 {[%clk 0:00:29.6]} 30. Bxc4 {[%clk 0:01:22.1]} 30... Qc7
{[%clk 0:00:30.3]} 31. Qxc7 {[%clk 0:01:14.5]} 31... Nxc7 {[%clk 0:00:30.3]} 32.
Be3 {[%clk 0:01:13]} 32... Kf8 {[%clk 0:00:27.5]} 33. Bb6 {[%clk 0:01:06.9]}
33... Na8 {[%clk 0:00:25.5]} 34. Be3 {[%clk 0:01:02.2]} 34... Ke7 {[%clk
0:00:25.6]} 35. Kf1 {[%clk 0:01:02.7]} 35... Nc7 {[%clk 0:00:23.3]} 36. Ke2
{[%clk 0:01:01.8]} 36... Na6 {[%clk 0:00:20.7]} 37. Bd2 {[%clk 0:00:50.8]} 37...
Bf6 {[%clk 0:00:19]} 38. Kd3 {[%clk 0:00:50.5]} 38... Nc7 {[%clk 0:00:18.6]} 39.
Be3 {[%clk 0:00:49.4]} 39... Na6 {[%clk 0:00:18.6]} 40. Kc3 {[%clk 0:00:48.7]}
40... Kd7 {[%clk 0:00:19.2]} 41. Bb5+ {[%clk 0:00:45.8]} 41... Ke7 {[%clk
0:00:16.8]} 42. Bb6 {[%clk 0:00:44.6]} 42... Bg5 {[%clk 0:00:14.9]} 43. g3
{[%clk 0:00:21.7]} 43... h4 {[%clk 0:00:14.9]} 44. g4 {[%clk 0:00:19.6]} 44...
Bf4 {[%clk 0:00:15.2]} 45. f3 {[%clk 0:00:19.6]} 45... Bg5 {[%clk 0:00:15.5]}
46. Bf2 {[%clk 0:00:19.5]} 46... Bf4 {[%clk 0:00:16]} 47. Bxh4+ {[%clk
0:00:19.7]} 47... g5 {[%clk 0:00:16.6]} 48. Bf2 {[%clk 0:00:19.7]} 48... f6
{[%clk 0:00:17]} 49. Be1 {[%clk 0:00:13.7]} 49... Kd8 {[%clk 0:00:16.3]} 50. Kb3
{[%clk 0:00:13.6]} 50... Nc7 {[%clk 0:00:16.6]} 51. Bc4 {[%clk 0:00:12.9]} 51...
Ne8 {[%clk 0:00:14.2]} 52. Bf2 {[%clk 0:00:12.5]} 52... Ng7 {[%clk 0:00:14]} 53.
Bb6+ {[%clk 0:00:12.2]} 53... Ke7 {[%clk 0:00:14.5]} 54. Ka4 {[%clk 0:00:11.8]}
54... Ne8 {[%clk 0:00:14.3]} 55. Bb5 {[%clk 0:00:11.5]} 55... Bd2 {[%clk
0:00:13.4]} 56. Ka5 {[%clk 0:00:09.8]} 56... Be1 {[%clk 0:00:12.8]} 57. Be3
{[%clk 0:00:08]} 57... Kd8 {[%clk 0:00:12]} 58. Bb6+ {[%clk 0:00:02.2]} 58...
Nc7 {[%clk 0:00:12.5]} 59. Bc4 {[%clk 0:00:02]} 59... Kc8 {[%clk 0:00:12.6]} 60.
Ka4 {[%clk 0:00:02.1]} 60... Na8 {[%clk 0:00:12.4]} 61. Be3 {[%clk 0:00:02.1]}
61... Nc7 {[%clk 0:00:12.7]} 62. b5 {[%clk 0:00:02.1]} 62... Ne8 {[%clk
0:00:10.9]} 63. Bc1 {[%clk 0:00:02.6]} 63... Kd7 {[%clk 0:00:10.8]} 64. Ba3
{[%clk 0:00:03.1]} 64... Kc8 {[%clk 0:00:10.3]} 65. b6 {[%clk 0:00:03.1]} 65...
Bf2 {[%clk 0:00:10.3]} 66. Bb5 {[%clk 0:00:03.6]} 66... Kd8 {[%clk 0:00:08.4]}
67. Bxe8 {[%clk 0:00:03.5]} 67... Kxe8 {[%clk 0:00:09.3]} 68. Kb5 {[%clk
0:00:03.5]} 68... Kd7 {[%clk 0:00:09.1]} 69. Bb4 {[%clk 0:00:03.8]} 69... Be1
{[%clk 0:00:09.5]} 70. Bxe1 {[%clk 0:00:03.8]} 1-0

[Event "Late-Titled-Tuesday-Blitz-June-25-2024"]
[Site "Chess.com"]
[Date "2024.06.25"]
[Round "5"]
[White "Bugcrusher"]
[Black "IMRosen"]
[Result "1/2-1/2"]
[WhiteElo "2484"]
[BlackElo "2727"]
[TimeControl "180+1"]
[EndTime "14:56:14 PDT"]
[Termination "Game drawn by stalemate"]

1. d4 {[%clk 0:02:57.6]} 1... d5 {[%clk 0:02:59.5]} 2. Nf3 {[%clk 0:02:56.8]}
2... Nf6 {[%clk 0:02:59.9]} 3. c4 {[%clk 0:02:56.8]} 3... e6 {[%clk 0:03:00.2]}
4. g3 {[%clk 0:02:54.8]} 4... dxc4 {[%clk 0:03:00.6]} 5. Bg2 {[%clk 0:02:53]}
5... Bb4+ {[%clk 0:03:01.2]} 6. Bd2 {[%clk 0:02:52.5]} 6... c5 {[%clk
0:03:01.7]} 7. O-O {[%clk 0:02:51.1]} 7... O-O {[%clk 0:03:01.9]} 8. dxc5 {[%clk
0:02:46.9]} 8... Bxc5 {[%clk 0:03:02.8]} 9. Qc2 {[%clk 0:02:46.3]} 9... Nbd7
{[%clk 0:03:03.4]} 10. Qxc4 {[%clk 0:02:46]} 10... b5 {[%clk 0:03:03.8]} 11.
Qxb5 {[%clk 0:02:38.7]} 11... Rb8 {[%clk 0:03:04.1]} 12. Qc4 {[%clk 0:02:36.2]}
12... Rxb2 {[%clk 0:03:04.7]} 13. Bc3 {[%clk 0:02:34.5]} 13... Rb6 {[%clk
0:03:02.2]} 14. Ba5 {[%clk 0:02:23.6]} 14... Ba6 {[%clk 0:03:01.2]} 15. Bxb6
{[%clk 0:02:22.6]} 15... Qxb6 {[%clk 0:03:00.5]} 16. Qc2 {[%clk 0:02:19.9]}
16... Ng4 {[%clk 0:02:29.8]} 17. e3 {[%clk 0:01:43.1]} 17... Bxf1 {[%clk
0:02:28.4]} 18. Bxf1 {[%clk 0:01:41.3]} 18... Rc8 {[%clk 0:02:01.4]} 19. Qe2
{[%clk 0:01:35.7]} 19... e5 {[%clk 0:01:37.1]} 20. Nbd2 {[%clk 0:01:33.8]} 20...
Qe6 {[%clk 0:01:32.3]} 21. Nb3 {[%clk 0:01:27.7]} 21... Bb6 {[%clk 0:01:30.5]}
22. Rd1 {[%clk 0:01:24.3]} 22... h5 {[%clk 0:01:24.7]} 23. Ng5 {[%clk
0:01:16.6]} 23... Qe7 {[%clk 0:01:22.6]} 24. Ne4 {[%clk 0:01:11.5]} 24... Nf8
{[%clk 0:01:12]} 25. Bh3 {[%clk 0:01:07.7]} 25... Qe6 {[%clk 0:00:40.8]} 26. f3
{[%clk 0:00:48.1]} 26... Qg6 {[%clk 0:00:11.2]} 27. Nbd2 {[%clk 0:00:20.2]}
27... Bxe3+ {[%clk 0:00:09.9]} 28. Kg2 {[%clk 0:00:19.9]} 28... Bxd2 {[%clk
0:00:06.4]} 29. Rxd2 {[%clk 0:00:19.4]} 29... f5 {[%clk 0:00:05.9]} 30. Nd6
{[%clk 0:00:17.9]} 30... Rc6 {[%clk 0:00:04.2]} 31. fxg4 {[%clk 0:00:15.7]}
31... hxg4 {[%clk 0:00:04.5]} 32. Bxg4 {[%clk 0:00:15.9]} 32... Rxd6 {[%clk
0:00:03.9]} 33. Rxd6 {[%clk 0:00:14.5]} 33... Qxd6 {[%clk 0:00:04.2]} 34. Bxf5
{[%clk 0:00:14.7]} 34... Qd5+ {[%clk 0:00:04.4]} 35. Be4 {[%clk 0:00:14.4]}
35... Qd4 {[%clk 0:00:03.9]} 36. Qd3 {[%clk 0:00:14]} 36... Ne6 {[%clk
0:00:02.7]} 37. Qxd4 {[%clk 0:00:13]} 37... Nxd4 {[%clk 0:00:02.9]} 38. Bd5+
{[%clk 0:00:13.2]} 38... Kf8 {[%clk 0:00:03.3]} 39. g4 {[%clk 0:00:13.2]} 39...
Ke7 {[%clk 0:00:03.9]} 40. h4 {[%clk 0:00:11.9]} 40... Ne2 {[%clk 0:00:04.4]}
41. Kf3 {[%clk 0:00:10.8]} 41... Nc3 {[%clk 0:00:04.7]} 42. Bb3 {[%clk
0:00:10.1]} 42... a5 {[%clk 0:00:03.1]} 43. g5 {[%clk 0:00:10.1]} 43... a4
{[%clk 0:00:03.6]} 44. Bc4 {[%clk 0:00:10.3]} 44... Nb1 {[%clk 0:00:02.9]} 45.
Kg4 {[%clk 0:00:10]} 45... Nd2 {[%clk 0:00:02.9]} 46. Bd5 {[%clk 0:00:08.8]}
46... Kd6 {[%clk 0:00:02.7]} 47. Bg8 {[%clk 0:00:08.7]} 47... e4 {[%clk
0:00:02.3]} 48. h5 {[%clk 0:00:08.9]} 48... e3 {[%clk 0:00:02.3]} 49. Kg3 {[%clk
0:00:08.8]} 49... Ne4+ {[%clk 0:00:01.8]} 50. Kf3 {[%clk 0:00:08.5]} 50... Nxg5+
{[%clk 0:00:01.5]} 51. Kxe3 {[%clk 0:00:09.1]} 51... Ke5 {[%clk 0:00:01.9]} 52.
Kd3 {[%clk 0:00:08.5]} 52... Ne4 {[%clk 0:00:01]} 53. Kc4 {[%clk 0:00:07.6]}
53... Nf6 {[%clk 0:00:01.9]} 54. Bf7 {[%clk 0:00:07.6]} 54... Ne4 {[%clk
0:00:01.8]} 55. Kb4 {[%clk 0:00:07.6]} 55... Nd6 {[%clk 0:00:02.1]} 56. Bg6
{[%clk 0:00:06.6]} 56... Kd4 {[%clk 0:00:02.5]} 57. Kxa4 {[%clk 0:00:06.8]}
57... Kc3 {[%clk 0:00:02.7]} 58. Ka5 {[%clk 0:00:07]} 58... Kc4 {[%clk
0:00:02.8]} 59. Kb6 {[%clk 0:00:07.5]} 59... Kd5 {[%clk 0:00:02.4]} 60. a4
{[%clk 0:00:07.7]} 60... Nc4+ {[%clk 0:00:03]} 61. Kb5 {[%clk 0:00:07.4]} 61...
Nd6+ {[%clk 0:00:02.9]} 62. Kb6 {[%clk 0:00:07.7]} 62... Nc4+ {[%clk 0:00:03.4]}
63. Kc7 {[%clk 0:00:07.9]} 63... Ke6 {[%clk 0:00:03]} 64. Kc6 {[%clk 0:00:07]}
64... Na5+ {[%clk 0:00:03]} 65. Kb5 {[%clk 0:00:07]} 65... Nb3 {[%clk
0:00:03.1]} 66. a5 {[%clk 0:00:07.3]} 66... Nxa5 {[%clk 0:00:02.6]} 67. Kxa5
{[%clk 0:00:07.6]} 67... Ke7 {[%clk 0:00:03.4]} 68. Kb6 {[%clk 0:00:06.6]} 68...
Kf8 {[%clk 0:00:03.9]} 69. Bh7 {[%clk 0:00:06.9]} 69... Kf7 {[%clk 0:00:03.1]}
70. Kc6 {[%clk 0:00:06.2]} 70... g5 {[%clk 0:00:03]} 71. hxg6+ {[%clk
0:00:05.3]} 71... Kg7 {[%clk 0:00:03.8]} 72. Kd7 {[%clk 0:00:05.4]} 72... Kh8
{[%clk 0:00:04.3]} 73. Ke6 {[%clk 0:00:05.8]} 73... Kg7 {[%clk 0:00:04.8]} 74.
Kf5 {[%clk 0:00:06.1]} 74... Kh8 {[%clk 0:00:04.8]} 75. Kg5 {[%clk 0:00:06.7]}
75... Kg7 {[%clk 0:00:05.3]} 76. Kf5 {[%clk 0:00:06.8]} 76... Kh8 {[%clk
0:00:05.6]} 77. Ke6 {[%clk 0:00:07.2]} 77... Kg7 {[%clk 0:00:06.1]} 78. Ke7
{[%clk 0:00:07.5]} 78... Kh8 {[%clk 0:00:06.5]} 79. Bg8 {[%clk 0:00:06.8]} 79...
Kxg8 {[%clk 0:00:05.1]} 80. Kf6 {[%clk 0:00:05.8]} 80... Kf8 {[%clk 0:00:05.3]}
81. g7+ {[%clk 0:00:06.3]} 81... Kg8 {[%clk 0:00:05.7]} 82. Kg6 {[%clk
0:00:07.1]} 1/2-1/2

[Event "Late-Titled-Tuesday-Blitz-June-25-2024"]
[Site "Chess.com"]
[Date "2024.06.25"]
[Round "5"]
[White "KoshkaMatrioshka"]
[Black "Greguer"]
[Result "1-0"]
[WhiteElo "2553"]
[BlackElo "2331"]
[TimeControl "180+1"]
[EndTime "14:56:16 PDT"]
[Termination "KoshkaMatrioshka won by resignation"]

1. c4 {[%clk 0:02:56.5]} 1... c6 {[%clk 0:02:59.7]} 2. Nf3 {[%clk 0:02:56.3]}
2... d5 {[%clk 0:03:00.3]} 3. g3 {[%clk 0:02:56.4]} 3... Nf6 {[%clk 0:03:00]} 4.
Bg2 {[%clk 0:02:57]} 4... Bg4 {[%clk 0:02:59.9]} 5. Ne5 {[%clk 0:02:56.2]} 5...
Bf5 {[%clk 0:02:59.4]} 6. cxd5 {[%clk 0:02:56.8]} 6... cxd5 {[%clk 0:02:55.8]}
7. g4 {[%clk 0:02:56.8]} 7... Be4 {[%clk 0:02:52.3]} 8. f3 {[%clk 0:02:53.2]}
8... Bxb1 {[%clk 0:02:51.7]} 9. Rxb1 {[%clk 0:02:53.2]} 9... e6 {[%clk
0:02:51.7]} 10. Qa4+ {[%clk 0:02:52.5]} 10... Nfd7 {[%clk 0:02:51.5]} 11. O-O
{[%clk 0:02:46.1]} 11... Bc5+ {[%clk 0:02:44.1]} 12. e3 {[%clk 0:02:39.3]} 12...
O-O {[%clk 0:02:43.4]} 13. Nxd7 {[%clk 0:02:38.9]} 13... Nxd7 {[%clk 0:02:42.6]}
14. d4 {[%clk 0:02:32.8]} 14... Bd6 {[%clk 0:02:41.3]} 15. f4 {[%clk 0:02:24.9]}
15... a6 {[%clk 0:02:32.6]} 16. Bd2 {[%clk 0:02:24.2]} 16... Nb6 {[%clk
0:02:23]} 17. Qd1 {[%clk 0:02:21.3]} 17... Rc8 {[%clk 0:02:18.7]} 18. Ba5 {[%clk
0:02:19]} 18... Bc7 {[%clk 0:02:16.3]} 19. b3 {[%clk 0:02:15.4]} 19... Nd7
{[%clk 0:02:08.6]} 20. Bxc7 {[%clk 0:02:14.3]} 20... Qxc7 {[%clk 0:02:08.9]} 21.
Rc1 {[%clk 0:02:07.6]} 21... Qa5 {[%clk 0:02:08.9]} 22. Qe2 {[%clk 0:02:06.2]}
22... Qa3 {[%clk 0:02:06.9]} 23. Qd2 {[%clk 0:02:05.3]} 23... Rfd8 {[%clk
0:01:46.7]} 24. g5 {[%clk 0:02:01.8]} 24... Nb8 {[%clk 0:01:44.5]} 25. f5 {[%clk
0:01:49.2]} 25... Rxc1 {[%clk 0:01:30.9]} 26. Rxc1 {[%clk 0:01:47.8]} 26... Qe7
{[%clk 0:01:23.5]} 27. h4 {[%clk 0:01:32.9]} 27... exf5 {[%clk 0:01:16]} 28. Rc5
{[%clk 0:01:30.2]} 28... Qe6 {[%clk 0:01:05.4]} 29. Qc3 {[%clk 0:01:18.8]} 29...
Nc6 {[%clk 0:01:04.6]} 30. b4 {[%clk 0:01:08.8]} 30... h6 {[%clk 0:01:04.3]} 31.
a4 {[%clk 0:01:05.6]} 31... hxg5 {[%clk 0:01:04.3]} 32. hxg5 {[%clk 0:01:06.5]}
32... Qe7 {[%clk 0:01:02.3]} 33. b5 {[%clk 0:01:03.1]} 33... axb5 {[%clk
0:01:02.1]} 34. axb5 {[%clk 0:01:04]} 34... Na7 {[%clk 0:00:55.3]} 35. g6 {[%clk
0:01:03.5]} 35... fxg6 {[%clk 0:00:52.8]} 36. Bxd5+ {[%clk 0:00:52.1]} 36... Kf8
{[%clk 0:00:49.4]} 37. Bg2 {[%clk 0:00:46]} 37... Re8 {[%clk 0:00:45.4]} 38. Rc7
{[%clk 0:00:40.6]} 38... Qxe3+ {[%clk 0:00:45]} 39. Qxe3 {[%clk 0:00:40.6]}
39... Rxe3 {[%clk 0:00:45.9]} 40. Rxb7 {[%clk 0:00:41.1]} 40... Nxb5 {[%clk
0:00:41.2]} 41. Rxb5 {[%clk 0:00:41]} 41... Rd3 {[%clk 0:00:41.3]} 42. d5 {[%clk
0:00:41]} 42... Ke7 {[%clk 0:00:41.7]} 43. Rb6 {[%clk 0:00:41.4]} 43... g5
{[%clk 0:00:41.3]} 44. Rg6 {[%clk 0:00:41.3]} 44... Kf7 {[%clk 0:00:40.4]} 45.
Rc6 {[%clk 0:00:34.5]} 45... g4 {[%clk 0:00:38.7]} 46. Kf2 {[%clk 0:00:20.4]}
46... f4 {[%clk 0:00:38.9]} 47. Ke2 {[%clk 0:00:19.3]} 47... Rd4 {[%clk
0:00:37.9]} 48. Bf1 {[%clk 0:00:09.6]} 48... Rxd5 {[%clk 0:00:36.7]} 49. Rc4
{[%clk 0:00:09.9]} 49... g5 {[%clk 0:00:35.4]} 50. Ke1 {[%clk 0:00:06.5]} 50...
Ra5 {[%clk 0:00:32.8]} 51. Rc6 {[%clk 0:00:05]} 51... Ra2 {[%clk 0:00:31]} 52.
Be2 {[%clk 0:00:04.2]} 52... Rb2 {[%clk 0:00:29.5]} 53. Bxg4 {[%clk 0:00:03.1]}
53... Kg7 {[%clk 0:00:27.7]} 54. Rc5 {[%clk 0:00:03.6]} 54... Kf6 {[%clk
0:00:27.3]} 55. Rf5+ {[%clk 0:00:02.9]} 55... Kg6 {[%clk 0:00:27.8]} 56. Re5
{[%clk 0:00:02.5]} 56... Rg2 {[%clk 0:00:27.7]} 57. Be2 {[%clk 0:00:02.9]} 57...
Rg1+ {[%clk 0:00:27.4]} 58. Kf2 {[%clk 0:00:03.3]} 58... Rg3 {[%clk 0:00:28.3]}
59. Bf3 {[%clk 0:00:03.3]} 59... Rh3 {[%clk 0:00:27.8]} 60. Re6+ {[%clk
0:00:02.7]} 60... Kf5 {[%clk 0:00:26.7]} 61. Re8 {[%clk 0:00:03.4]} 61... Rh2+
{[%clk 0:00:25.6]} 62. Kg1 {[%clk 0:00:03.7]} 62... Rb2 {[%clk 0:00:24.9]} 63.
Rf8+ {[%clk 0:00:04.2]} 63... Kg6 {[%clk 0:00:24.8]} 64. Kf1 {[%clk 0:00:04.3]}
64... Rb1+ {[%clk 0:00:22.6]} 65. Kf2 {[%clk 0:00:04.7]} 65... Rb2+ {[%clk
0:00:23.5]} 66. Ke1 {[%clk 0:00:05.4]} 66... Rh2 {[%clk 0:00:22.2]} 67. Re8
{[%clk 0:00:04.7]} 67... Kf6 {[%clk 0:00:22.2]} 68. Rf8+ {[%clk 0:00:04.8]}
68... Kg7 {[%clk 0:00:20.5]} 69. Rf5 {[%clk 0:00:04.9]} 69... Kg6 {[%clk
0:00:20.4]} 70. Be4 {[%clk 0:00:05.5]} 70... Kh5 {[%clk 0:00:19.6]} 71. Bf3+
{[%clk 0:00:05.1]} 71... Kg6 {[%clk 0:00:19.4]} 72. Rc5 {[%clk 0:00:05]} 72...
Rh3 {[%clk 0:00:16.3]} 73. Ke2 {[%clk 0:00:04.7]} 73... Rh2+ {[%clk 0:00:16.5]}
74. Kd3 {[%clk 0:00:05.2]} 74... Rh3 {[%clk 0:00:17]} 75. Ke4 {[%clk 0:00:05.7]}
75... Rh2 {[%clk 0:00:17]} 76. Rc6+ {[%clk 0:00:06.3]} 76... Kf7 {[%clk
0:00:16.3]} 77. Kf5 {[%clk 0:00:06.8]} 77... Rf2 {[%clk 0:00:16]} 78. Kg4 {[%clk
0:00:07.1]} 78... Rf1 {[%clk 0:00:15.4]} 79. Rc5 {[%clk 0:00:07.3]} 79... Kf6
{[%clk 0:00:15.4]} 80. Rf5+ {[%clk 0:00:07.5]} 80... Ke6 {[%clk 0:00:15.1]} 81.
Ra5 {[%clk 0:00:07.8]} 81... Kf6 {[%clk 0:00:15.1]} 82. Ra6+ {[%clk 0:00:08]}
82... Ke5 {[%clk 0:00:15]} 83. Ra5+ {[%clk 0:00:07.9]} 83... Kd4 {[%clk
0:00:15.4]} 84. Bb7 {[%clk 0:00:08.3]} 84... Ke3 {[%clk 0:00:15.1]} 85. Kxg5
{[%clk 0:00:08.4]} 85... f3 {[%clk 0:00:14.7]} 86. Ra3+ {[%clk 0:00:09.1]} 86...
Ke2 {[%clk 0:00:14.7]} 87. Ba6+ {[%clk 0:00:09]} 87... Ke1 {[%clk 0:00:13]} 88.
Ra1+ {[%clk 0:00:09.3]} 1-0